Cogmind - Beta 11 @@@ ROGUE MODE // 2022.04.08 @ 10:45:18 Player: Happytimes Result: Self-destructed Performance ------------- Evolutions (2) 1000 Regions Visited (7) 1400 Robots Destroyed (7) 35 Value Destroyed (247) 247 Prototype IDs (5) 100 Alien Tech Used (0) 0 Bonus (1025) 1025 TOTAL SCORE: 3807 Bonus ------- Follower Combat Kills 25 Entered Garrisons 200 Used RIF Installer 500 Aligned with FarCom 300 Cogmind --------- Core Integrity 514/550 Matter 148/300 Energy 200/200 System Corruption 0% Temperature Hot (270) Movement Rolling (83) Location -8/Materials Parts ------- > --- POWER (2) -------- Micro Nuclear Core Micro Nuclear Core > --- PROPULSION (4) --- Wheel Wheel Armored Wheel > --- UTILITY (3) ------ Small Storage Unit > --- WEAPON (2) ------- Gauss Cannon Gauss Cannon > --- INVENTORY (8) ---- Micro Nuclear Core Cloak of Protection Assault Rifle Grenade Launcher Mining Laser Hammer Hammer Great Maul Peak State ------------ > --- POWER ------------ Micro Nuclear Core Micro Nuclear Core > --- PROPULSION ------- Wheel Wheel Armored Wheel > --- UTILITY ---------- Small Storage Unit Cloak of Protection > --- WEAPON ----------- Assault Rifle Grenade Launcher > --- INVENTORY -------- Micro Nuclear Core Gauss Cannon Gauss Cannon Mining Laser Hammer Hammer Great Maul [Rating: 24] Favorites ----------- Power Ion Engine Engine Ion Engine Power Core Micro Nuclear Core Propulsion Wheel Leg Potential Leg Wheel Wheel Utility Small Storage Unit Device Cloak of Protection Storage Small Storage Unit Weapon Assault Rifle Ballistic Gun Assault Rifle Ballistic Cannon Gauss Cannon Launcher Grenade Launcher Build | -11 -10 -10 -10 -9 -8 -8 -8 ------- Run | Scr Mat Min Exi Min Mat Gar Mat Slots Evolved 4 | . . . . . 4 . . Power 1 | . . . . . 1 . . Propulsion 2 | . . . . . 2 . . Utility 1 | . . . . . 1 . . Weapon . | . . . . . . . . Parts Attached 19 | 6 . 1 4 . 3 1 4 Power 3 | 1 . . . . 2 . . Engine 1 | 1 . . . . . . . Core 2 | . . . . . 2 . . Reactor . | . . . . . . . . Propulsion 5 | 2 . . 2 . 1 . . Treads . | . . . . . . . . Leg 1 | . . . 1 . . . . Wheel 4 | 2 . . 1 . 1 . . Hover . | . . . . . . . . Flight . | . . . . . . . . Utility 4 | 1 . . 2 . . 1 . Device 3 | . . . 2 . . 1 . Storage 1 | 1 . . . . . . . Processor . | . . . . . . . . Hackware . | . . . . . . . . Protection . | . . . . . . . . Artifact . | . . . . . . . . Weapon 7 | 2 . 1 . . . . 4 Energy Gun . | . . . . . . . . Energy Cannon . | . . . . . . . . Ballistic Gun 2 | 2 . . . . . . . Ballistic Cannon 3 | . . . . . . . 3 Launcher 2 | . . 1 . . . . 1 Special Weapon . | . . . . . . . . Impact Weapon . | . . . . . . . . Slashing Weapon . | . . . . . . . . Piercing Weapon . | . . . . . . . . Special Melee Weapon . | . . . . . . . . Unidentified Prototypes 3 | . . . 3 . . . . Parts Lost . | . . . . . . . . Power . | . . . . . . . . Propulsion . | . . . . . . . . Utility . | . . . . . . . . Weapon . | . . . . . . . . Highest Loss Streak . | . . . . . . . . To Critical Strikes . | . . . . . . . . Average Slot Usage (%) 79 | . 85 85 84 85 59 76 73 Engine 9 | . 14 14 14 14 5 . . Core 5 | . . . . . 6 18 18 Wheel 26 | . 28 28 27 28 20 27 27 Storage 12 | . 14 14 14 14 9 9 9 Ballistic Gun 13 | . 28 16 14 14 9 9 1 Launcher 10 | . . 11 14 14 9 9 3 Naked Turns . | . . . . . . . . Heaviest Build 31 | 13 13 15 15 15 22 30 31 Greatest Support 32 | 20 20 20 20 10 22 32 32 Greatest Overweight (x) 2 | . . . 1 1 2 . . Average Overweight (x) . | . . . . 1 . . . Largest Inventory Capacity 8 | 8 8 8 8 8 8 8 8 Average Capacity 7 | 6 8 8 8 8 8 8 8 Most Carried 8 | 5 2 3 4 6 8 8 8 Average Carried 4 | 1 . 2 3 4 7 7 7 Final Capacity 8 | 8 8 8 8 8 8 8 8 Final Carried 8 | . 2 3 4 6 8 7 8 Class Distribution -------------------- 100% | Mutant Dominant Class ---------------- Mutant | -10/Materials Mutant | -10/Mines Mutant | -10/Exiles Mutant | -9/Mines Mutant | -8/Materials Mutant | -8/Garrison Mutant | -8/Materials Resources | -11 -10 -10 -10 -9 -8 -8 -8 ----------- Run | Scr Mat Min Exi Min Mat Gar Mat Matter Collected 375 | 221 . . . 154 . . . Remotely . | . . . . . . . . Salvage Created 256 | . . . . 209 . . 47 Parts 13 | . . . . 11 . . 2 Haulers Intercepted . | . . . . . . . . Recyclers Shooed . | . . . . . . . . Parts Field Recycled . | . . . . . . . . Retrieved Matter . | . . . . . . . . Parts Self-Destructed . | . . . . . . . . Prevented . | . . . . . . . . Kills | -11 -10 -10 -10 -9 -8 -8 -8 ------- Run | Scr Mat Min Exi Min Mat Gar Mat Combat Hostiles Destroyed 6 | . . . . 5 . . 1 Guns 1 | . . . . 1 . . . Cannons 1 | . . . . . . . 1 AOE 4 | . . . . 4 . . . Classes Destroyed 3 | . . . . 2 . . 1 Recycler 1 | . . . . 1 . . . Grunt 5 | . . . . 5 . . . Sentry 1 | . . . . . . . 1 Best Kill Streak 3 | . . . . 3 . . 1 Combat Bots Only 3 | . . . . 3 . . 1 Max Kills in Single Turn 2 | . . . . 2 . . 1 Gunslinging . | . . . . . . . . Exploded 2 | . . . . 2 . . . Melee . | . . . . . . . . Uniques/NPCs Destroyed . | . . . . . . . . Combat | -11 -10 -10 -10 -9 -8 -8 -8 -------- Run | Scr Mat Min Exi Min Mat Gar Mat Damage Taken 304 | . 35 . . 47 . . 222 Core 59 | . 9 . . 14 . . 36 Absorbed by Shields . | . . . . . . . . Core Remaining (%) 95 | 100 . . . 90 . . . Volleys Fired 11 | . . . . 5 . . 6 Largest 2 | . . . . 2 . . 2 Hottest 96 | . . . . 50 . . 96 Shots Fired 22 | . . . . 10 . . 12 Gun 5 | . . . . 5 . . . Cannon 12 | . . . . . . . 12 Launcher 5 | . . . . 5 . . . Special . | . . . . . . . . Kinetic 17 | . . . . 5 . . 12 Thermal . | . . . . . . . . Explosive 5 | . . . . 5 . . . Electromagnetic . | . . . . . . . . Robot Hit Streak 8 | . . . . 3 . . 8 Robot Miss Streak 2 | . . . . 2 . . 1 Penetration Max . | . . . . . . . . Secondary Targets . | . . . . . . . . Shots Hit Robots 15 | . . . . 5 . . 10 Core Hits 10 | . . . . 8 . . 2 Critical Kills . | . . . . . . . . Critical Parts Destroyed . | . . . . . . . . Critical Strikes . | . . . . . . . . Melee Attacks . | . . . . . . . . Impact . | . . . . . . . . Slashing . | . . . . . . . . Piercing . | . . . . . . . . Sneak Attacks . | . . . . . . . . Combat Hostiles . | . . . . . . . . Follow-up Attacks . | . . . . . . . . Damage Inflicted 632 | . . . . 406 . . 226 Guns 40 | . . . . 40 . . . Cannons 226 | . . . . . . . 226 Explosions 366 | . . . . 366 . . . Melee . | . . . . . . . . Ramming . | . . . . . . . . Kinetic 266 | . . . . 40 . . 226 Thermal . | . . . . . . . . Explosive 366 | . . . . 366 . . . Electromagnetic . | . . . . . . . . Impact . | . . . . . . . . Slashing . | . . . . . . . . Piercing . | . . . . . . . . Highest Corruption . | . . . . . . . . Average Corruption . | . . . . . . . . Corruption Purged . | . . . . . . . . Corruption Blocked . | . . . . . . . . Overload Shots . | . . . . . . . . Overflow Damage . | . . . . . . . . Projectiles . | . . . . . . . . Explosions . | . . . . . . . . Melee . | . . . . . . . . Knockbacks 1 | . . . . . . . 1 Impact . | . . . . . . . . Kinetic 1 | . . . . . . . 1 Secondary . | . . . . . . . . Self-Inflicted Damage 14 | . . . . 14 . . . Shots 1 | . . . . 1 . . . Rammed . | . . . . . . . . Targets Rammed . | . . . . . . . . Kicked . | . . . . . . . . Crushed . | . . . . . . . . Highest Temperature 270 | . . . . 4 . . 270 Average Temperature 101 | . . . . 2 . . 116 Received Heat Transfer 81 | . . . . 18 . . 63 Siege Activations . | . . . . . . . . Robots Corrupted . | . . . . . . . . Combat Hostiles . | . . . . . . . . Parts Fried . | . . . . . . . . Impact Corruptions . | . . . . . . . . Robots Melted . | . . . . . . . . Combat Hostiles . | . . . . . . . . Parts Melted . | . . . . . . . . Heat Transferred . | . . . . . . . . Parts Sabotaged . | . . . . . . . . Parts Stolen . | . . . . . . . . Parts Stripped . | . . . . . . . . Power Chain Reactions . | . . . . . . . . Missiles Intercepted . | . . . . . . . . Alert | -11 -10 -10 -10 -9 -8 -8 -8 ------- Run | Scr Mat Min Exi Min Mat Gar Mat Peak Influence 263 | . 7 2 . 263 128 83 75 Initial 102 | . . 2 . . 102 83 40 Average 87 | . 4 2 . 208 108 83 61 Maximum Alert Level 1 | . . . . 1 . . . Low Security (%) 86 | 100 100 100 . 35 100 100 100 Level 1 13 | . . . . 64 . . . Level 2 . | . . . . . . . . Level 3 . | . . . . . . . . Level 4 . | . . . . . . . . Level 5 . | . . . . . . . . High Security . | . . . . . . . . Max Security . | . . . . . . . . Squads Dispatched 1 | . . . . . 1 . . Investigation . | . . . . . . . . Extermination . | . . . . . . . . Reinforcement 1 | . . . . . 1 . . Assault . | . . . . . . . . Garrison . | . . . . . . . . Intercept . | . . . . . . . . Searches Triggered . | . . . . . . . . Construction Impeded . | . . . . . . . . Haulers Reinforced . | . . . . . . . . Active Scanning Responses . | . . . . . . . . Cargo Convoy Interrupts . | . . . . . . . . Stealth | -11 -10 -10 -10 -9 -8 -8 -8 --------- Run | Scr Mat Min Exi Min Mat Gar Mat Distress Signals . | . . . . . . . . Communications Jammed . | . . . . . . . . Distress Signals . | . . . . . . . . Times Spotted 12 | . 3 . . 5 1 . 3 Peak Tracking Total 4 | . 3 . . 3 2 . 4 Tactical Retreats . | . . . . . . . . Traps | -11 -10 -10 -10 -9 -8 -8 -8 ------- Run | Scr Mat Min Exi Min Mat Gar Mat Traps Triggered . | . . . . . . . . Indirectly . | . . . . . . . . Trap Hack Attempts . | . . . . . . . . Triggered . | . . . . . . . . Disarmed . | . . . . . . . . Reprogrammed . | . . . . . . . . Reused . | . . . . . . . . Traps Extracted . | . . . . . . . . Installed . | . . . . . . . . Triggered . | . . . . . . . . Machines | -11 -10 -10 -10 -9 -8 -8 -8 ---------- Run | Scr Mat Min Exi Min Mat Gar Mat Machines Disabled . | . . . . . . . . Max in Single Turn . | . . . . . . . . Machines Sabotaged . | . . . . . . . . Garrisons Compromised . | . . . . . . . . Overloaded Fab Kills . | . . . . . . . . Hacking | -11 -10 -10 -10 -9 -8 -8 -8 --------- Run | Scr Mat Min Exi Min Mat Gar Mat Machines Accessed 6 | . 1 . . . 4 . 1 Terminals 5 | . 1 . . . 3 . 1 Fabricators . | . . . . . . . . Repair Stations . | . . . . . . . . Recycling Units . | . . . . . . . . Scanalyzers . | . . . . . . . . Garrison Access 1 | . . . . . 1 . . Total Hacks 9 | . 1 . . . 6 . 2 Successful 7 | . 1 . . . 5 . 1 Failed 2 | . . . . . 1 . 1 Catastrophic . | . . . . . . . . Database Lockouts . | . . . . . . . . Manual 1 | . . . 1 . . . . Terminals 8 | . 1 . . . 5 . 2 Fabricators . | . . . . . . . . Repair Stations . | . . . . . . . . Recycling Units . | . . . . . . . . Scanalyzers . | . . . . . . . . Garrison Access 1 | . . . . . 1 . . Terminal Hacks 6 | . 1 . . . 4 . 1 Prototype ID Bank 1 | . . . . . 1 . . Branch Access Points 1 | . 1 . . . . . . Locate Traps 2 | . . . . . 2 . . Registered Components 1 | . . . . . 1 . . Zone Layout 1 | . . . . . . . 1 Fabricator Hacks . | . . . . . . . . Repair Station Hacks . | . . . . . . . . Recycling Unit Hacks . | . . . . . . . . Scanalyzer . | . . . . . . . . Garrison Access Hacks 1 | . . . . . 1 . . Unlock Access 1 | . . . . . 1 . . Unauthorized Hacks . | . . . . . . . . Terminals . | . . . . . . . . Fabricators . | . . . . . . . . Repair Stations . | . . . . . . . . Recycling Units . | . . . . . . . . Scanalyzers . | . . . . . . . . Garrison Access . | . . . . . . . . Data Cores Recovered . | . . . . . . . . Used . | . . . . . . . . Hacking Detections 3 | . 1 . . . 2 . . Full Trace Events . | . . . . . . . . Feedback Events . | . . . . . . . . Feedback Blocked . | . . . . . . . . Robot Schematics Acquired . | . . . . . . . . Robots Built . | . . . . . . . . Authchips . | . . . . . . . . Time . | . . . . . . . . Total Robot Build Rating . | . . . . . . . . Part Schematics Acquired . | . . . . . . . . Parts Built . | . . . . . . . . Authchips . | . . . . . . . . Time . | . . . . . . . . Total Part Build Rating . | . . . . . . . . Parts Repaired . | . . . . . . . . Time . | . . . . . . . . Parts Recycled . | . . . . . . . . Recycled Matter . | . . . . . . . . Retrieved Matter . | . . . . . . . . Retrieved Components . | . . . . . . . . Parts Scanalyzed . | . . . . . . . . Part Schematics Acquired . | . . . . . . . . Parts Damaged . | . . . . . . . . Bothacking | -11 -10 -10 -10 -9 -8 -8 -8 ------------ Run | Scr Mat Min Exi Min Mat Gar Mat Used RIF Installer 1 | . . . . . . 1 . Robots Hacked . | . . . . . . . . Non-combat . | . . . . . . . . Combat . | . . . . . . . . Robot Hacks Applied . | . . . . . . . . Relay Couplers Released . | . . . . . . . . Fabnet Peak Effective % . | . . . . . . . . Robots Rewired . | . . . . . . . . Allies Hacked . | . . . . . . . . Hacks Repelled . | . . . . . . . . Allies | -11 -10 -10 -10 -9 -8 -8 -8 -------- Run | Scr Mat Min Exi Min Mat Gar Mat Total Allies 1 | . . . . 1 . . . Largest Group 1 | . . . . 1 1 1 . Highest-Rated Group 31 | . . . . 31 31 31 . Highest-Rated Ally 31 | . . . . 31 31 31 . Total Orders . | . . . . . . . . Ally Attacks 3 | . . . . 3 . . . Total Damage 43 | . . . . 43 . . . Kills 1 | . . . . 1 . . . Allies Corrupted . | . . . . . . . . Allies Melted . | . . . . . . . . Intel | -11 -10 -10 -10 -9 -8 -8 -8 ------- Run | Scr Mat Min Exi Min Mat Gar Mat Robot Analysis Total . | . . . . . . . . Derelict Logs Recovered 2 | . . 1 . 1 . . . Drone Launches . | . . . . . . . . Drone Recoveries . | . . . . . . . . Exploration | -11 -10 -10 -10 -9 -8 -8 -8 ------------- Run | Scr Mat Min Exi Min Mat Gar Mat Turns Passed 826 | 32 63 96 213 129 110 131 52 Spaces Moved 804 | 30 76 117 234 109 106 113 19 Core 12 | 12 . . . . . . . Treads . | . . . . . . . . Legs . | . . . . . . . . Wheels 792 | 18 76 117 234 109 106 113 19 Hover . | . . . . . . . . Flight . | . . . . . . . . Fastest Speed 50 | 50 80 80 80 95 85 83 83 Average Speed 85 | 68 80 80 87 95 92 83 83 Slowest Speed 110 | 80 80 80 95 95 110 85 83 Overloaded Moves . | . . . . . . . . Propulsion Burnouts . | . . . . . . . . Robots Hopped . | . . . . . . . . Cave-ins Triggered . | . . . . . . . . Exploration Rate (%) 24 | 4 23 32 61 32 16 28 3 Regions Visited 7 Branch Regions 3 Pre-discovered Areas 2 | . . 1 . 1 . . . Known Exits Taken 2 | . 1 . . . 1 . . Unknown Exits Taken 4 | 1 . 1 1 1 . . . Scrap Searched 2 | . . 1 . 1 . . . Spaces Dug . | . . . . . . . . Terrain Destroyed 51 | . . . . 45 . . 6 Melee . | . . . . . . . . Projectile 6 | . . . . . . . 6 AOE 45 | . . . . 45 . . . Terrain Rammed . | . . . . . . . . Walls Destroyed . | . . . . . . . . Machines Disabled . | . . . . . . . . Actions | -11 -10 -10 -10 -9 -8 -8 -8 --------- Run | Scr Mat Min Exi Min Mat Gar Mat Total 911 | 40 77 118 244 124 118 149 41 Wait 60 | . . . . 9 3 37 11 Move 796 | 29 75 116 233 108 105 111 19 Hop . | . . . . . . . . Pick Up 19 | 5 2 1 4 2 5 . . Fast Attach 2 | 1 . . . . 1 . . Attach 10 | 5 . . 3 . 1 1 . Detach 1 | . . . . . . . 1 Swap 7 | . . 1 1 . 1 . 4 Drop 5 | . . . 3 . 2 . . Fire 11 | . . . . 5 . . 6 Melee . | . . . . . . . . Ram . | . . . . . . . . Kick . | . . . . . . . . Crush . | . . . . . . . . Escape Stasis . | . . . . . . . . Rewire . | . . . . . . . . Trap . | . . . . . . . . Miscellaneous . | . . . . . . . . Route ------- -11/Scrapyard -10/Materials (discovered 2 exits: *Min x2) -10/Mines -10/Exiles -9/Mines -8/Materials -8/Garrison -8/Materials History --------- Turn | Location | Event 12 | -11/Scrapyard | Discovered new exit (range 16) 33 | -11/Scrapyard | Entered Materials 60 | -10/Materials | Identified exit to Mines 96 | -10/Materials | Entered Mines 149 | -10/Mines | Learned location of Zion (-6) 186 | -10/Mines | Deemed a non-threat by the Exiles lab entrance 187 | -10/Mines | Discovered new exit (range 5) 192 | -10/Mines | Entered Exiles 216 | -10/Exiles | Met 8R-AWN 228 | -10/Exiles | Met EX-HEX 249 | -10/Exiles | Met EX-BIN 259 | -10/Exiles | Aligned with FarCom system 260 | -10/Exiles | Given EX-Vault access code 281 | -10/Exiles | Opened EX-Vault 285 | -10/Exiles | Found Prototype Device 287 | -10/Exiles | Identified Cloak of Protection 293 | -10/Exiles | Found Prototype Device 294 | -10/Exiles | Identified Trap Reconfigurator 297 | -10/Exiles | Found Prototype Leg 298 | -10/Exiles | Identified Potential Leg 321 | -10/Exiles | Build established: Mutant 325 | -10/Exiles | Warned to stay clear of 0b10 Research branches 358 | -10/Exiles | Met EX-DEC 393 | -10/Exiles | Discovered new exit (range 14) 405 | -10/Exiles | Left Exiles lab with Cloak of Protection 405 | -10/Exiles | Entered Mines 411 | -9/Mines | Met a Derelict bent on vengeance 441 | -9/Mines | Received a Mining Laser from a helpful Derelict 514 | -9/Mines | Discovered new exit (range 15) 534 | -9/Mines | Entered Materials 534 | -8/Materials | Accompanied by 1 ally 534 | -8/Materials | Evolved 4 slots: Power x1, Propulsion x2, Utility x1 641 | -8/Materials | Identified exit to Garrison 644 | -8/Materials | Entered Garrison 644 | -8/Garrison | Accompanied by 1 ally 649 | -8/Garrison | Installed Relay Interface Framework 736 | -8/Garrison | Triggered checkpoint 763 | -8/Garrison | Discovered new exit (range 13) 775 | -8/Garrison | Entered Materials 827 | -8/Materials | Self-destructed Last Messages --------------- 00763_ EXIT=FOUND 00774_ Attempting to access garrison exit controls... RIF authorized. LOCATION=UNKNOWN GOAL=ESCAPE 00775_ Receiving FarCom transmissions... 00778_ Connecting with Terminal... 00778_ Current location identified: Materials >>Layout(Zone) Retrieving Zone 6N layout... Downloaded map data. 00791_ Y-45 Defender destroyed. 00815_ H-55 Commando knocked back. 00816_ Slug penetrates Wall. 00818_ Slug penetrates H-55 Commando. 00818_ Critical hit (Burn: +37). 00821_ Slug penetrates Wall. 00822_ Penetrated by Slug. 00824_ Slug penetrates H-55 Commando. 00824_ Slug penetrates Wall. Map ----- +----------------------------------------------------+ | ?????????????????????????????????????????????? | | ?????????????????????????????????????????????? | | ?????????????????????????????????????????????? | | ?????????????????????????????????????????????? | | ?????????????????????????????????????????????? | | ?????????????????????????????????????????????? | | ?????????????????????????????????????????????? | | ?????????? #?????????????????????????? | | ?????????? #?????????????????????????? | | ?????????? """ #?????????????????????????? | | ?????????? """"" #?????????????????????????? | | ?????????? """"" #?????????????????????????? | | ?????????? """"" #?????????????????????????? | | ?????????? """ #?????????????????????????? | | ?????????? #?????????????????????????? | | ??????????##########?????????????????????????? | | ??????????# #???????????????????????????? | | ??????????# #???????????????????????????? | | ??????????# """ #???????????????????????????? | | ??????????# """ #???????????????????????????? | | ??????????# """ #???????????????????????????? | | ?????? l?# #??????###??????????????????? | | ????? g##;;;##########T######?????????????? | | ????? Y #?????????????? | | ????? %= % #?????????????? | | ????? * %h @ #?????????????? | | ????????! ###+### #;;#########?????????????? | | ??????????## # # #???????????????? | | ???????????# # # s """ #???????????????? | | ???????????# # + """ #???????????????? | | ???????????# # # s """ #???????????????? | | ???????????# + # s #???????????????? | | ???????????# # # """ #???????????????? | | ???????????# # # """ #???????????????? | | ???????????# # # """ #???????????????? | | ???????????# # # #???????????????? | | ???????????###### ##########???????????????? | | ????????????????# #????????????????????????? | | ????????????????# ?????????????????????????? | | ????????????????# ?????????????????????????? | | ????????????????# ?????????????????????????? | | ????????????????? ?????????????????????????? | | ?????????????????????????????????????????????? | | ?????????????????????????????????????????????? | | ?????????????????????????????????????????????? | | ?????????????????????????????????????????????? | | ?????????????????????????????????????????????? | | ?????????????????????????????????????????????? | | ?????????????????????????????????????????????? | | ?????????????????????????????????????????????? | +----------------------------------------------------+ Best States ------------- Heat Dissipation 31 Energy Generation 25 Energy Capacity 250 Matter Stores 300 Matter Capacity 300 Sight Range 16 Terrain Scan Density 10 Cloak Strength 5 Evasion (%) 50 Item Schematics ----------------- None Robot Schematics ------------------ None Fabricated ------------ Nothing Alien Tech Used ----------------- None Achievements -------------- None Challenges ------------ None Game ------ Seed ParticleNuclearMapper Manual? 0 Play Time 00:06:48 Cumulative 47.7 hours Start 2022.04.08 @ 10:39:22 End 2022.04.08 @ 10:45:18 Sessions 1 Manual Loads 0 Difficulty Rogue Special Mode None Game No. 150 Rogue 150 Adventurer 0 Explorer 0 Win Type - Total 0 Types 0/0/0/0/0/0/0/0/0 Lore% 32 Gallery% 46 Achievement% 37 Wizard Run 0 Options --------- ASCII 0 Keyboard 0 Movement Arrows Keybinds 0 Fullscreen 1 Font 18/SmallcapsGlow Map View 76x50 Tactical HUD 1 Map Filters NONE Filters NONE Steam 1 RUN: 39783dbe-53ce-4a0b-a810-1f7bc4996bac